bitfinex/quotes_ETHUSD_20250511
["timestamp","ask_amount","ask_price","bid_price","bid_amount"]
[1746960827110,9.73730314,2503.3,2502.9,0.8279]
[1746960827804,0.19585082,2503.2,2502.9,0.8279]
[1746960827976,9.73730314,2503.3,2502.9,0.8279]
[1746960828300,0.19585082,2503.2,2502.9,0.8279]
[1746960828504,0.19585082,2503.2,2502.9,8.8279]
[1746960828711,9.73730314,2503.3,2502.9,8.8279]
[1746960828883,0.19585082,2503.1,2502.9,8.8279]
[1746960829210,0.19585082,2503.0,2502.9,8.86784917]
[1746960829502,0.8136,2503.7,2502.9,8.86784917]
[1746960829705,3.4246,2503.9,2503.0,0.8279]
[1746960830006,3.4246,2503.9,2503.1,0.03994389]
[1746960830187,0.8136,2503.9,2503.1,0.03994389]
[1746960830909,0.8136,2503.9,2503.0,0.8279]
[1746960831107,0.19832273,2503.8,2503.0,0.8279]
[1746960831609,0.19832273,2503.8,2503.1,0.0399439]
[1746960832977,0.19832273,2503.8,2503.0,0.8279]
[1746960833773,3.99416956,2503.7,2503.0,0.8279]
[1746960833979,4.75879413,2503.6,2503.0,0.8279]
[1746960834180,0.19832273,2503.5,2503.0,0.8279]
[1746960836413,4.75851831,2503.8,2503.1,0.03994498]
[1746960836588,0.20119615,2503.7,2503.0,0.8279]
[1746960836787,0.20119615,2503.7,2503.1,0.03994498]
[1746960837186,0.20119615,2503.7,2503.0,0.8279]
[1746960837921,0.20119615,2503.7,2503.1,0.03994497]
[1746960838913,0.20119615,2503.7,2503.0,0.8279]
[1746960839119,3.99395872,2503.8,2503.0,0.8279]
[1746960839321,0.20119615,2503.6,2503.0,0.8279]
[1746960839511,4.77005983,2503.9,2503.0,0.8279]
[1746960839819,3.99394324,2503.8,2503.0,0.8279]
[1746960840019,0.20119615,2503.7,2503.0,0.8279]
[1746960840424,4.19530668,2503.7,2503.0,0.8279]
[1746960841089,0.20119615,2503.7,2503.0,0.8279]
[1746960841512,3.99393128,2503.8,2503.0,0.8279]
[1746960841826,3.99402638,2503.8,2503.1,0.03994295]
[1746960842193,0.20119615,2503.7,2503.1,0.03994295]
[1746960843387,0.20119615,2503.7,2503.2,2.611]
[1746960843592,4.77004528,2503.9,2503.2,2.611]
[1746960843792,4.195133,2503.8,2503.2,2.611]
[1746960844531,4.19519672,2503.8,2503.2,2.611]
[1746960844688,13.93249986,2503.8,2503.2,2.611]
[1746960845898,9.93849929,2503.8,2503.2,2.95888475]
[1746960846117,9.93849929,2503.8,2503.2,2.611]
[1746960846927,13.93245263,2503.8,2503.2,2.611]
[1746960847224,3.99410585,2503.7,2503.2,2.611]
[1746960847415,0.2015359,2503.6,2503.2,2.611]
[1746960847793,13.73131136,2503.8,2503.2,2.611]
[1746960847993,15.87228557,2503.8,2503.2,2.611]
[1746960848194,0.2015359,2503.7,2503.2,2.611]
[1746960849253,4.19564487,2503.7,2503.2,2.611]
[1746960849622,0.2015359,2503.7,2503.2,2.611]
[1746960849813,0.2015359,2503.7,2503.3,0.8104]
[1746960849997,9.73730314,2503.8,2503.3,0.8104]
[1746960850323,0.2015359,2503.7,2503.3,0.8104]
[1746960850730,9.73730314,2503.8,2503.3,0.8104]
[1746960851202,0.2015359,2503.7,2503.3,0.8104]
[1746960851398,9.73730314,2503.8,2503.3,0.8104]
[1746960851624,0.2015359,2503.7,2503.3,0.8104]
[1746960851825,9.73730314,2503.8,2503.3,0.8104]
[1746960852031,0.2015359,2503.7,2503.3,0.8104]
[1746960852331,9.73730314,2503.8,2503.3,0.8104]
[1746960852534,0.2015359,2503.6,2503.3,0.8104]
[1746960852732,9.73730314,2503.8,2503.3,0.8104]
[1746960852933,0.2015359,2503.5,2503.4,2.609]
[1746960853107,9.73730314,2503.8,2503.4,2.609]
[1746960853307,0.2015359,2503.5,2503.4,2.609]
[1746960853507,9.73730314,2503.8,2503.4,2.609]
[1746960853708,0.2015359,2503.5,2503.4,2.609]
[1746960854340,9.73730314,2503.8,2503.4,2.609]
[1746960854505,0.2015359,2503.5,2503.4,2.609]
[1746960854702,9.73730314,2503.8,2503.4,2.609]
[1746960854914,0.2015359,2503.5,2503.4,2.609]
[1746960855113,9.73730314,2503.8,2503.4,2.609]
[1746960855314,0.2015359,2503.5,2503.4,2.609]
[1746960855538,9.73730314,2504.5,2503.5,1.3604]
[1746960855744,9.73730314,2504.5,2503.6,0.8503332]
[1746960858433,9.73730314,2504.5,2503.8,0.8104]
[1746960858637,9.73730314,2504.5,2504.0,0.8104]
[1746960858809,9.73730314,2504.5,2504.1,2.64892973]
[1746960860933,0.19058193,2504.4,2504.1,2.609]
[1746960861769,0.19058193,2504.4,2504.2,0.7711]
[1746960861945,0.19058193,2504.4,2504.3,0.81102506]
[1746960862237,0.1910148,2504.4,2504.3,0.81102506]
[1746960862438,9.73730314,2505.1,2504.3,1.3211]
[1746960862627,0.1910148,2505.0,2504.3,0.7761]
[1746960862832,0.18684814,2505.0,2504.3,0.81602501]
[1746960863340,0.18684814,2505.0,2504.3,0.7761]
[1746960863639,0.98074814,2505.0,2504.3,0.7761]
[1746960863943,0.98074814,2505.0,2504.3,0.81602507]
[1746960864945,4.97281261,2505.0,2504.3,0.81602507]
[1746960865142,4.97281261,2505.0,2504.2,8.0]
[1746960865143,3.99223939,2504.9,2504.2,8.0]
[1746960865651,0.18684814,2504.8,2504.2,8.0]
[1746960866017,0.7939,2505.0,2504.3,0.8160271]
[1746960866223,0.18684814,2504.9,2504.3,0.8160271]
[1746960867524,4.17905134,2504.9,2504.3,0.8160271]
[1746960868025,0.18684814,2504.9,2504.3,0.8160271]
[1746960868235,6.04935357,2504.9,2504.3,0.8160271]
[1746960868949,3.99239945,2504.8,2504.3,0.8160271]
[1746960869151,3.99239945,2504.8,2504.3,0.7761]
[1746960869365,3.99281293,2504.5,2504.4,2.608]
[1746960869526,6.56618397,2504.5,2504.4,2.608]
[1746960869947,6.75612477,2504.5,2504.4,2.608]
[1746960870337,6.75622455,2504.5,2504.1,2.608]
[1746960870532,4.96495351,2504.5,2504.1,2.608]
[1746960871529,4.91495351,2504.5,2504.1,2.608]
[1746960871729,0.9220408,2504.5,2504.1,2.608]
[1746960873372,0.1899408,2504.5,2504.1,2.608]
[1746960873736,16.33585613,2504.7,2504.1,2.608]
[1746960873943,0.1899408,2504.4,2504.1,2.608]
[1746960874148,12.34330314,2504.7,2504.1,2.608]
[1746960874357,0.1899408,2504.3,2504.1,2.608]
[1746960874530,12.34330314,2504.7,2504.1,2.608]
[1746960874730,12.34330314,2504.7,2504.2,0.774]
[1746960875268,9.73730314,2504.7,2504.2,1.11619333]
[1746960875444,9.73730314,2504.7,2504.2,0.774]
[1746960876053,0.1899408,2504.6,2504.2,0.774]
[1746960880043,0.1899408,2504.6,2504.3,2.606]
[1746960881783,4.18260849,2504.6,2504.3,2.606]
[1746960882070,0.1899408,2504.6,2504.3,2.606]
[1746960882459,4.18263573,2504.6,2504.3,2.606]
[1746960882661,0.1899408,2504.6,2504.3,2.606]
[1746960883379,4.18261075,2504.6,2504.3,2.606]
[1746960883563,0.1899408,2504.6,2504.3,2.606]
[1746960883767,4.18261733,2504.6,2504.3,2.606]
[1746960884365,0.8106,2504.5,2504.3,2.606]
[1746960884572,0.8106,2504.5,2503.9,16.973]
[1746960884573,3.99297236,2504.4,2503.9,16.973]
[1746960884774,3.99313858,2504.3,2503.9,16.973]
[1746960885066,0.18836391,2504.2,2503.9,16.973]
[1746960885244,3.99313858,2504.3,2503.9,16.973]
[1746960885451,0.18830207,2504.2,2503.9,16.973]
[1746960885777,3.99306149,2504.4,2503.9,16.973]
[1746960885954,0.18793098,2504.1,2503.9,16.973]
[1746960886283,9.73730314,2504.7,2503.9,16.973]
[1746960886284,0.20833263,2506.2,2505.2,0.55]
[1746960886454,1.20289621,2506.2,2505.4,8.0]
[1746960886777,0.8106,2506.5,2505.4,8.0]
[1746960886978,0.8106,2506.0,2505.1,0.1372]
[1746960887369,0.8106,2506.0,2505.2,2.605]
[1746960888099,4.80107431,2506.0,2505.3,2.605]
[1746960888305,0.48010743,2505.9,2505.3,2.605]
[1746960892808,10.21741057,2505.9,2505.3,2.605]
[1746960893708,0.17183715,2505.8,2505.3,2.605]
[1746960896118,0.17183715,2505.8,2505.4,2.605]
[1746960896502,0.17183715,2505.8,2505.5,2.605]
[1746960896702,0.8273,2505.7,2505.5,2.605]
[1746960897215,0.17183715,2505.6,2505.5,2.605]
[1746960902721,4.16301088,2505.6,2504.8,0.8022]
[1746960903016,4.16301088,2505.6,2505.2,2.605]
[1746960903616,3.99125385,2505.5,2505.2,2.605]
[1746960903792,0.4163091,2505.4,2505.2,2.605]
[1746960904408,0.17533015,2505.3,2505.2,2.605]
[1746960914726,0.17533015,2505.3,2505.2,11.3674]
[1746960914914,10.55970314,2505.9,2505.2,11.3674]
[1746960915529,0.16308487,2505.8,2505.3,0.03991007]
[1746960916298,0.16308487,2505.8,2505.4,0.7624]
[1746960916509,0.16308487,2505.8,2505.5,0.03990768]
[1746960923149,0.16308487,2505.8,2505.6,0.7622]
[1746960923448,7.36853842,2506.5,2505.7,0.03990351]
[1746960923647,7.36853842,2506.5,2505.8,2.609]
[1746960924046,9.73730314,2506.6,2505.9,0.80210327]
[1746960924542,9.73730314,2506.6,2505.9,8.03990327]
[1746960924745,9.73730314,2506.6,2506.0,0.7622]
[1746960924918,9.73730314,2506.6,2506.1,0.03989674]
[1746960925124,9.73730314,2506.6,2506.0,0.7622]
[1746960925433,9.73730314,2506.6,2506.0,0.8020986]
[1746960927324,9.73730314,2506.6,2506.0,0.7622]
[1746960928044,13.72686271,2506.6,2506.0,0.7622]
[1746960928240,0.7562,2506.5,2506.0,0.7622]
[1746960928442,0.7562,2506.5,2506.1,2.609]
[1746960928649,3.98988406,2506.4,2506.1,2.609]
[1746960928859,5.79525839,2506.5,2506.1,2.609]
[1746960929236,3.99022109,2506.2,2505.6,0.755]
[1746960929555,4.74646375,2506.1,2506.0,2.609]
[1746960929755,4.74646375,2506.1,2505.8,2.609]
[1746960929954,0.7562,2506.1,2505.8,2.609]
[1746960930543,2.603,2506.3,2505.9,0.755]
[1746960931427,3.99011128,2506.2,2505.8,2.609]
[1746960932754,6.59301254,2506.3,2505.8,2.609]
[1746960933056,2.603,2506.3,2505.8,2.609]
[1746960933239,7.34907506,2506.4,2505.8,2.609]
[1746960934164,3.3592,2506.4,2505.8,2.609]
[1746960934467,6.5926613,2506.5,2505.8,2.609]
[1746960935564,3.98978614,2506.4,2505.8,2.609]
[1746960935768,3.9900194,2506.3,2505.8,2.609]
[1746960936133,0.16816069,2506.2,2505.8,2.609]
[1746960936551,3.98982556,2506.4,2505.8,2.609]
[1746960936756,0.16816069,2506.1,2505.8,2.609]
[1746960936957,3.98985347,2506.4,2505.8,2.609]
[1746960937153,0.16816069,2506.0,2505.8,2.609]
[1746960937357,3.98994682,2506.3,2505.8,2.609]
[1746960937555,0.16816069,2505.9,2505.8,2.609]
[1746960937734,4.80525845,2506.2,2505.8,2.609]
[1746960937936,0.16816069,2505.9,2505.8,2.609]
[1746960938469,4.80493012,2506.4,2505.8,2.609]
[1746960938672,0.16816069,2506.3,2505.8,2.609]
[1746960938973,0.16816069,2506.3,2505.9,0.8165]
[1746960939479,0.16816069,2506.3,2506.0,2.603]
[1746960942568,1.24322559,2506.3,2506.0,2.603]
[1746960942972,0.16816069,2506.3,2506.0,2.603]
[1746960943336,2.603,2506.5,2506.0,2.603]
[1746960943538,0.16837729,2506.2,2506.0,2.603]
[1746960944071,12.34030314,2506.6,2506.1,0.7814]
[1746960944234,12.34030314,2506.6,2506.1,0.82129763]
[1746960944639,9.73730314,2506.6,2506.1,0.82129763]
[1746960946040,6.59201837,2506.9,2506.2,0.7814]
[1746960947266,3.98918496,2506.8,2506.2,0.7814]
[1746960947639,6.59205545,2506.9,2506.2,0.82129558]
[1746960947840,3.98922015,2506.8,2506.2,0.82129558]
[1746960948351,3.98922015,2506.8,2506.2,0.7814]
[1746960948866,4.76175765,2506.7,2506.2,0.7814]
[1746960949070,3.98987553,2506.4,2506.3,2.603]
[1746960949271,3.98987553,2506.4,2506.2,2.603]
[1746960949441,3.98969171,2506.5,2506.2,2.603]
[1746960950055,3.98967954,2506.5,2506.2,2.603]
[1746960950370,3.98986593,2506.4,2506.2,2.603]
[1746960951062,0.17079016,2506.3,2506.2,2.603]
[1746960951563,0.17079016,2506.3,2506.1,2.603]
[1746960951944,4.16075649,2506.3,2506.1,2.603]
[1746960952277,0.17079016,2506.3,2506.1,2.603]
[1746960953667,0.17079016,2506.2,2506.1,2.603]
[1746960953875,9.73730314,2506.6,2506.1,2.603]
[1746960954174,0.17079016,2506.5,2506.1,3.3855]
[1746960957878,0.17079016,2506.5,2506.2,0.03990037]
[1746960959049,0.17079016,2506.5,2506.3,0.7598]
[1746960962054,2.602,2506.9,2506.3,0.7598]
[1746960962282,0.17023339,2506.8,2506.3,0.7598]
[1746960964494,4.91310184,2506.8,2506.3,0.7598]
[1746960964666,0.92393339,2506.8,2506.3,0.7598]
[1746960965051,0.17023339,2506.8,2506.4,0.03989464]
[1746960966788,0.17023339,2506.8,2506.5,0.82]
[1746960966995,13.72598804,2507.1,2506.5,0.85989161]
[1746960967149,0.17091392,2506.7,2506.5,0.82]
[1746960967357,3.98870029,2507.1,2506.5,0.82]
[1746960967781,0.17091392,2507.0,2506.5,0.82]
[1746960968151,6.59044045,2507.3,2506.5,0.82]
[1746960968354,0.17091392,2506.9,2506.5,0.82]
[1746960968555,6.59044045,2507.3,2506.5,0.82]
[1746960969052,0.17091392,2507.2,2506.5,0.82]
[1746960970457,0.7544,2507.1,2506.3,0.816]
[1746960970682,3.98918423,2506.8,2506.4,2.602]
[1746960970883,0.17134691,2506.7,2506.4,2.602]
[1746960971070,3.98918423,2506.8,2506.4,2.602]
[1746960971286,0.17134691,2506.7,2506.4,2.602]
[1746960971452,3.98994496,2506.4,2505.6,0.816]
[1746960971652,0.17125413,2506.3,2505.7,2.602]
[1746960971891,9.73730314,2506.5,2505.8,0.03990199]
[1746960972069,0.17125413,2506.4,2505.8,0.03990199]
[1746960972395,0.17125413,2506.4,2505.9,0.816]
[1746960972561,4.16111278,2506.4,2505.9,0.816]
[1746960972756,0.17125413,2506.4,2505.9,0.816]
[1746960974991,4.16118036,2506.4,2505.9,0.816]
[1746960975689,4.16118036,2506.4,2505.7,3.4012]
[1746960975690,3.9900102,2506.3,2505.7,3.4012]
[1746960976189,0.17038809,2506.2,2505.7,3.4012]
[1746960976992,0.17038809,2506.2,2505.7,3.44110488]
[1746960977373,9.73730314,2506.5,2505.7,3.44110488]
[1746960977569,0.16862479,2506.1,2505.7,3.44110488]
[1746960977782,9.73730314,2506.5,2505.7,3.44110488]
[1746960977966,0.16853197,2506.0,2505.7,3.44110488]
[1746960978168,9.73730314,2506.5,2505.7,3.44110488]
[1746960978373,0.16853197,2505.9,2505.7,3.44110488]
[1746960978569,13.72700551,2506.5,2505.7,3.44110488]
[1746960978773,0.16853197,2505.8,2505.7,3.44110488]
[1746960978980,13.72700551,2506.5,2505.7,3.44110488]
[1746960979162,0.16853197,2505.8,2505.7,3.44110488]
[1746960979358,9.73730314,2506.5,2505.7,3.44110488]
[1746960979890,0.15441454,2506.4,2505.7,3.44110488]
[1746960980094,0.15441454,2506.4,2505.7,0.83910488]
[1746960980390,0.8014,2505.9,2505.6,2.602]
[1746960980597,4.791581,2506.2,2505.6,2.602]
[1746960981095,0.15441454,2506.1,2505.6,2.602]
[1746960981594,2.75541454,2506.1,2505.6,2.602]
[1746960984699,2.75541454,2506.1,2505.7,0.84810911]
[1746960987372,0.15441454,2506.1,2505.7,0.84810911]
[1746960987788,3.99010269,2506.3,2505.7,0.84810911]
[1746960987995,0.15441454,2506.0,2505.7,0.8082]
[1746960988199,3.99010269,2506.3,2505.7,0.8082]
[1746960988501,0.15441454,2505.9,2505.7,0.8082]
[1746960988684,3.99010269,2506.3,2505.7,0.8082]
[1746960988891,0.15441454,2506.2,2505.7,0.8082]
[1746960990898,0.15441454,2506.2,2505.7,0.84810501]
[1746960991102,0.15441454,2506.2,2505.7,0.8082]
[1746960991997,0.7774,2506.1,2505.6,2.602]
[1746960992383,0.14059887,2506.0,2505.6,2.602]
[1746960993573,4.79394421,2506.3,2505.6,2.64190802]
[1746960993775,0.14066097,2505.9,2505.6,2.64190802]
[1746960993970,3.99010576,2506.2,2505.6,2.64190802]
[1746960994170,0.14066097,2505.8,2505.6,2.64190802]
[1746960994406,3.99010576,2506.2,2505.6,2.64190802]
[1746960994706,4.79391956,2506.3,2505.6,2.64190802]
[1746960994906,0.14066097,2506.1,2505.6,2.64190802]
[1746960995106,4.79391956,2506.3,2505.6,2.64190802]
[1746960995306,0.14066097,2506.0,2505.6,2.64190802]
[1746960995486,4.79391956,2506.3,2505.6,2.64190802]
[1746960995689,0.14066097,2505.9,2505.6,2.64190802]
[1746960995883,4.79391956,2506.3,2505.6,2.64190802]
[1746960996089,0.14066097,2505.8,2505.6,2.64190802]
[1746960996290,0.8039,2506.3,2505.6,2.64190802]
[1746960996493,0.14066097,2505.7,2505.6,2.602]
[1746960996683,4.79395774,2506.3,2505.6,2.602]
[1746960996882,0.14066097,2505.7,2505.6,2.602]
[1746960997082,3.99010454,2506.2,2505.6,2.602]
[1746960997281,0.14066097,2505.7,2505.6,2.602]
[1746960997506,3.99027125,2506.1,2505.6,2.602]
[1746960997712,0.14035046,2505.7,2505.6,2.602]
[1746960997910,0.14035046,2505.7,2505.0,3.3827]
[1746960997911,0.7615,2505.6,2505.0,3.3827]
[1746960998215,10.49880314,2505.6,2505.0,2.601]
[1746960998531,1.86246889,2505.5,2505.0,2.601]
[1746960998874,1.86246889,2505.5,2504.8,0.7817]
[1746960999106,3.99203124,2505.0,2504.5,3.3827]
[1746960999381,6.59293623,2505.1,2504.5,3.3827]
[1746960999605,0.13935666,2504.9,2504.5,3.3827]
[1746960999808,6.59293623,2505.1,2504.5,3.3827]
[1746960999809,2.601,2505.1,2504.5,3.3827]
[1746960999981,0.13935666,2504.8,2504.5,3.3827]
[1746961000173,4.75352261,2505.0,2504.5,3.3827]
[1746961000374,0.13935666,2504.7,2504.5,0.7817]
[1746961000579,2.601,2505.1,2504.5,3.3827]
[1746961001111,0.13935666,2505.0,2504.5,3.3827]
[1746961002185,0.13935666,2505.0,2504.6,0.03992467]
[1746961002384,0.13935666,2505.0,2504.5,3.3827]
[1746961005014,0.13935666,2505.0,2504.5,2.601]
[1746961005314,4.79379273,2504.9,2504.5,2.601]
[1746961005618,0.89252197,2504.8,2504.5,2.601]
[1746961006111,0.13581533,2504.7,2504.5,2.601]
[1746961006285,7.39445964,2505.1,2504.5,2.601]
[1746961006487,0.13581533,2504.6,2504.5,2.601]
[1746961006714,7.39445964,2505.1,2504.5,2.601]
[1746961006893,0.13581533,2504.6,2504.5,2.601]
[1746961007208,7.39445964,2505.1,2504.5,2.601]
[1746961007408,1.13861753,2505.0,2504.5,2.601]
[1746961007713,0.13581533,2504.9,2504.5,2.601]
[1746961008712,3.4025,2505.1,2504.5,2.601]
[1746961008917,0.13279924,2504.8,2504.5,2.601]
[1746961009121,7.39436034,2505.1,2504.5,2.601]
[1746961009418,8.53295624,2505.1,2504.5,2.601]
[1746961009788,0.13279924,2505.0,2504.5,2.601]
[1746961012623,0.0208504,2508.3,2504.8,0.55]
[1746961012828,0.30365486,2509.8,2505.9,2.396]
[1746961013134,0.30365486,2509.8,2507.0,2.396]
[1746961013304,0.8015,2510.0,2507.2,8.0]
[1746961013491,0.8015,2510.0,2507.5,0.55]
[1746961013692,2.86,2509.9,2507.9,0.55]
[1746961014003,6.84238283,2509.8,2508.1,8.55]
[1746961014194,0.69263707,2509.7,2508.3,8.55]
[1746961014439,0.69263707,2509.7,2508.5,8.1375]
[1746961014619,4.78558505,2510.0,2508.7,8.0]
[1746961014820,3.98423108,2509.9,2508.7,8.0]
[1746961014998,1.09592994,2509.9,2508.7,8.0]
[1746961015324,8.08398782,2509.9,2508.7,8.0]
[1746961015632,0.08398782,2509.9,2508.7,8.0]
[1746961015811,0.85665857,2509.9,2507.7,0.55]
[1746961016016,0.85665857,2509.9,2508.1,0.1375]
[1746961016017,3.98516341,2509.4,2508.1,0.1375]
[1746961016217,2.858,2509.3,2508.1,0.1375]
[1746961016389,0.08398782,2509.2,2508.2,0.03986157]
[1746961016594,0.3781866,2509.2,2508.2,0.03986157]
[1746961019109,4.36352429,2509.2,2508.2,0.03986157]
[1746961019443,0.3781866,2509.2,2508.1,0.1375]
[1746961020496,9.1900866,2509.2,2508.1,0.1375]
[1746961020837,3.98640075,2508.6,2507.8,2.77]
[1746961020996,3.33782542,2508.5,2507.8,2.77]
[1746961021201,7.32428211,2508.5,2507.8,2.77]
[1746961021695,3.33782542,2508.5,2507.8,2.77]
[1746961023555,0.49282542,2508.5,2507.8,2.77]
[1746961023759,0.09418534,2508.5,2507.8,2.77]
[1746961024052,6.82100407,2508.8,2507.8,2.77]
[1746961024249,4.09084399,2508.7,2507.8,2.77]
[1746961024492,3.98630527,2508.6,2507.8,2.77]
[1746961024661,2.837,2508.5,2507.8,2.77]
[1746961024829,0.2837,2508.4,2507.8,2.77]
[1746961025456,0.10469225,2508.3,2507.9,0.03987128]
[1746961025656,2.837,2508.5,2507.9,0.03987128]
[1746961025856,0.10469225,2508.2,2507.9,0.03987128]
[1746961026018,2.837,2508.5,2507.9,0.03987128]
[1746961026218,0.10469225,2508.4,2507.9,0.03987128]
[1746961027415,0.39886147,2508.4,2507.8,2.77]
[1746961030415,0.39886147,2508.4,2507.9,0.03987118]
[1746961030617,0.10469225,2508.4,2507.9,2.80887118]
[1746961030846,6.80613914,2508.7,2507.9,2.80887118]
[1746961031090,0.10227175,2508.6,2507.9,2.80887118]
[1746961033686,4.08858882,2508.6,2507.9,2.80887118]
[1746961033873,0.10227175,2508.6,2507.9,2.769]
[1746961034078,4.77955488,2508.6,2507.9,2.769]
[1746961034277,4.77955488,2508.6,2508.1,0.1375]
[1746961034278,0.10227175,2508.6,2508.1,0.1375]
[1746961034447,10.05,2509.1,2508.2,0.03986121]
[1746961034649,3.98584052,2508.9,2508.2,0.03986121]
[1746961034853,3.98576228,2509.0,2508.1,0.1375]
[1746961035092,0.09443454,2508.9,2508.2,2.769]
[1746961035295,1.90887799,2508.9,2508.2,2.769]
[1746961035459,0.8182,2508.8,2508.2,2.769]
[1746961035791,4.80425396,2508.8,2508.2,2.769]
[1746961035992,0.09443454,2508.7,2508.2,2.769]
[1746961036861,1.81444345,2508.9,2508.2,2.769]
[1746961037095,0.09443454,2508.8,2508.2,2.769]
[1746961037253,5.35075649,2508.8,2508.2,2.769]
[1746961037666,3.98614298,2508.7,2508.2,2.769]
[1746961038076,0.09443454,2508.6,2508.2,2.769]
[1746961038381,0.09443454,2508.6,2507.8,0.1375]
[1746961038586,3.98652404,2508.5,2507.9,2.769]
[1746961038788,3.98685709,2508.3,2507.9,2.769]
[1746961038989,4.48919378,2508.4,2507.9,2.769]
[1746961039199,4.39475924,2508.4,2507.9,2.769]
[1746961039356,0.09443454,2508.3,2507.9,2.769]
[1746961041786,0.09443454,2508.3,2507.9,2.74241983]
[1746961041983,0.54336178,2508.3,2507.9,2.74241983]
[1746961042697,0.09443454,2508.3,2507.9,2.74241983]
[1746961042898,3.98645041,2508.5,2507.9,2.74241983]
[1746961043202,0.09443454,2508.2,2507.9,2.74241983]
[1746961043409,3.98645041,2508.5,2507.9,2.74241983]
[1746961043613,0.09443454,2508.1,2507.9,2.74241983]
[1746961043762,3.98645041,2508.5,2507.9,2.74241983]
[1746961044100,0.39864504,2508.4,2507.9,2.74241983]
[1746961044306,0.49307958,2508.4,2507.9,2.74241983]
[1746961045278,4.47980013,2508.4,2507.9,2.74241983]
[1746961045607,3.98677811,2508.3,2507.9,2.74241983]
[1746961045822,6.78277811,2508.3,2507.9,2.74241983]
[1746961046019,3.98708185,2508.1,2507.4,2.9385]
[1746961046167,1.22068112,2508.2,2507.3,17.165]
[1746961046373,3.98758266,2507.8,2507.3,2.801]
[1746961046887,0.09443454,2507.7,2507.3,2.801]
[1746961047090,0.40820172,2507.7,2507.3,2.801]
[1746961047292,0.09219688,2507.6,2507.3,2.801]
[1746961050707,3.98846879,2507.3,2507.0,2.801]
[1746961050896,4.07914648,2507.5,2507.0,2.801]
[1746961051098,4.39617148,2507.4,2507.0,2.801]
[1746961051296,0.49896129,2507.4,2507.0,2.801]
[1746961054083,4.48716798,2507.4,2507.0,2.801]
[1746961055411,0.49896129,2507.4,2507.0,2.801]
[1746961055721,4.48723944,2507.4,2507.0,2.801]
[1746961055902,0.8475351,2507.3,2507.0,2.801]
[1746961056101,0.93777325,2507.3,2507.0,2.801]
[1746961059331,3.98861835,2507.2,2507.0,2.801]
[1746961059547,4.0789809,2507.2,2507.0,2.801]
[1746961060719,0.09036255,2507.2,2507.0,2.801]
[1746961060937,3.98837857,2507.3,2507.0,2.801]
[1746961061140,0.09036255,2507.1,2507.0,2.801]
[1746961061336,5.10332747,2507.3,2507.0,2.801]
[1746961061536,0.08840385,2507.1,2507.0,2.801]
[1746961061836,5.10335247,2507.3,2507.0,2.801]
[1746961062142,1.1149489,2507.3,2507.0,2.801]
[1746961062450,0.08827946,2507.2,2507.0,2.801]
[1746961062750,2.756,2507.5,2507.0,2.801]
[1746961062900,0.08824836,2507.1,2507.0,2.801]
[1746961063106,3.988354,2507.3,2507.0,2.801]
[1746961063302,0.08824836,2507.1,2507.0,2.801]
[1746961063508,3.9885408,2507.2,2507.0,2.801]
[1746961063722,0.08824836,2507.1,2507.0,2.801]
[1746961065403,3.98842488,2507.3,2507.0,2.801]
[1746961065605,0.08824836,2507.1,2507.0,2.801]
[1746961066130,4.66286737,2507.3,2507.0,2.801]
[1746961066330,0.08824836,2507.1,2507.0,2.801]
[1746961066506,3.98855386,2507.2,2507.0,2.801]
[1746961066839,0.08824836,2507.1,2507.0,2.801]
[1746961067837,4.07692053,2507.1,2507.0,2.801]
[1746961068037,0.96221318,2507.1,2506.5,2.802]
[1746961068203,3.9894678,2506.6,2506.5,2.802]
[1746961068639,4.07756066,2506.6,2506.5,2.802]
[1746961069737,0.08809286,2506.6,2506.5,2.802]
[1746961070120,3.5373,2506.8,2506.5,2.802]
[1746961070318,0.08700418,2506.6,2506.5,2.802]
[1746961070519,3.98930865,2506.7,2506.5,2.802]
[1746961070840,0.08700418,2506.6,2506.2,0.1375]
[1746961071027,0.08700418,2506.6,2506.3,0.03989454]
[1746961071226,10.05,2507.2,2506.4,0.1375]
[1746961071540,10.72444249,2507.3,2506.4,0.1375]
[1746961071740,0.08423555,2507.1,2506.4,0.1375]
[1746961071910,10.72444249,2507.3,2506.4,0.1375]
[1746961072215,0.08519999,2507.0,2506.4,0.1375]
[1746961072420,10.72444249,2507.3,2506.4,0.1375]
[1746961072621,0.08519999,2506.9,2506.4,0.1375]
[1746961072821,10.72444249,2507.3,2506.4,0.1375]
[1746961073037,0.08519999,2506.8,2506.4,0.1375]
[1746961073242,10.72444249,2507.3,2506.4,0.1375]
[1746961073543,10.72444249,2507.3,2506.5,0.03988827]
[1746961073744,0.08519999,2507.2,2506.6,2.802]
[1746961073944,0.08519999,2507.2,2506.7,0.03988818]
[1746961075947,4.07373232,2507.2,2506.7,0.03988818]
[1746961076147,1.1656896,2507.2,2506.7,0.03988818]
[1746961077147,5.15428381,2507.2,2506.6,2.802]
[1746961077751,3.98870018,2507.1,2506.6,2.802]
[1746961078252,0.08519999,2507.0,2506.6,2.802]
[1746961078621,5.06908223,2507.2,2506.6,2.802]
[1746961078817,0.08582208,2506.9,2506.6,2.802]
[1746961079143,0.08582208,2506.8,2506.6,2.802]
[1746961079327,0.9731936,2507.1,2506.6,2.802]
[1746961079528,0.08582208,2506.7,2506.6,2.802]
[1746961079846,0.9731936,2507.1,2506.6,2.802]
[1746961080045,0.08582208,2506.7,2506.6,2.802]
[1746961080243,0.9731936,2507.1,2506.6,2.802]
[1746961080445,0.08582208,2506.7,2506.6,2.802]
[1746961080644,0.9731936,2507.1,2506.6,2.802]
[1746961080827,0.08582208,2506.7,2506.6,2.802]
[1746961081031,0.9731936,2507.1,2506.6,2.802]
[1746961081562,0.08582208,2507.0,2506.6,2.802]
[1746961081763,3.98847438,2507.3,2506.6,2.802]
[1746961081918,0.08582208,2506.9,2506.6,2.802]